[Event "FIDE Womens World Cup 2021"]
[Site "Sochi"]
[Date "2021.07.15"]
[Round "2.1"]
[White "Sebag, Marie"]
[Black "Skripchenko, Almira"]
[Result "1/2-1/2"]
[ECO "B01"]
[WhiteElo "2438"]
[BlackElo "2411"]
[Annotator "NA"]
[PlyCount "39"]
[EventDate "2021.07.12"]
[EventType "k.o."]
[EventCountry "RUS"]
[SourceTitle "playchess.com"]
[Source "ChessBase"]
[SourceQuality "1"]
[TimeControl "40/5400+30:1800+30"]

1. e4 {[%emt 0:00:06]} d5 {[%emt 0:00:14]} 2. exd5 {[%emt 0:00:14]} Qxd5 {[%emt 0:00:05]} 3. Nc3 {[%emt 0:00:05]} Qd8 {[%emt 0:00:32]} 4. d4 {[%emt 0:02:44]} Nf6 {[%emt 0:04:33]} 5. Nf3 {[%emt 0:04:41]} g6 {[%emt 0:00:14]} 6. h3 {[%emt 0:17:33]} Bg7 {[%emt 0:00:38]} 7. Bd3 {[%emt 0:01:43]} O-O {[%emt 0:03:09]} 8. O-O {[%emt 0:00:19]} Nc6 {[%emt 0:06:05]} 9. Be3 {[%emt 0:07:35]} Nb4 {[%emt 0:11:41]} 10. Bc4 {[%emt 0:05:25]} Nbd5 {[%emt 0:05:19]} 11. Nxd5 {[%emt 0:01:28]} Nxd5 {[%emt 0:00:08]} 12. Bg5 {[%emt 0:03:03]} c6 {[%emt 0:20:13]} 13. Re1 {[%emt 0:12:08]} Be6 {[%emt 0:03:14]} 14. Bb3 {[%emt 0:02:43]} Nc7 {[%emt 0:05:28]} 15. c3 {[%emt 0:11:31]} Bf6 {[%emt 0:06:39]} 16. Bh6 {[%emt 0:01:40]} Bg7 {[%emt 0:00:22]} 17. Bg5 {[%emt 0:08:44]} Bf6 {[%emt 0:00:32]} 18. Bh6 {[%emt 0:01:38]} Bg7 {[%emt 0:00:15]} 19. Bg5 {[%emt 0:02:54]} Bf6 20. Rf1 1/2-1/2

[Event "FIDE Womens World Cup 2021"]
[Site "Sochi"]
[Date "2021.07.15"]
[Round "2.1"]
[White "Yip, Carissa"]
[Black "Buksa, Nataliya"]
[Result "1-0"]
[ECO "B48"]
[WhiteElo "2430"]
[BlackElo "2413"]
[Annotator "NA"]
[PlyCount "97"]
[EventDate "2021.07.12"]
[EventType "k.o."]
[EventCountry "RUS"]
[SourceTitle "playchess.com"]
[Source "ChessBase"]
[SourceQuality "1"]
[TimeControl "40/5400+30:1800+30"]

1. Nf3 {[%emt 0:00:58]} c5 {[%emt 0:00:05]} 2. e4 {[%emt 0:00:33]} e6 {[%emt 0:00:15]} 3. d4 {[%emt 0:00:39]} cxd4 {[%emt 0:00:08]} 4. Nxd4 {[%emt 0:00:04]} Nc6 {[%emt 0:00:03]} 5. Nc3 {[%emt 0:00:02]} Qc7 {[%emt 0:00:04]} 6. Be3 {[%emt 0:00:23]} a6 {[%emt 0:00:13]} 7. Qd2 {[%emt 0:00:14]} Nf6 {[%emt 0:00:17]} 8. O-O-O {[%emt 0:00:21]} Be7 {[%emt 0:00:42]} 9. f4 {[%emt 0:02:28]} b5 {[%emt 0:00:31]} 10. Bd3 {[%emt 0:02:05]} Bb7 {[%emt 0:34:52]} 11. e5 {[%emt 0:09:55]} Nxd4 {[%emt 0:01:28]} 12. Bxd4 {[%emt 0:08:27]} b4 {[%emt 0:01:55]} 13. exf6 {[%emt 0:12:03]} bxc3 {[%emt 0:00:04]} 14. Bxc3 {[%emt 0:00:05]} Bxf6 {[%emt 0:00:59]} 15. Bxf6 {[%emt 0:00:15]} gxf6 {[%emt 0:00:04]} 16. Rhe1 {[%emt 0:00:16]} Rb8 {[%emt 0:06:08]} 17. Kb1 {[%emt 0:07:21]} Bc6 {[%emt 0:08:21]} 18. c4 {[%emt 0:02:09]} Ba4 {[%emt 0:05:48]} 19. Rc1 {[%emt 0:00:14]} Qc5 {[%emt 0:01:08]} 20. g4 {[%emt 0:05:35]} h6 {[%emt 0:05:05]} 21. h4 {[%emt 0:06:52]} Ke7 {[%emt 0:09:57]} 22. Qc3 {[%emt 0:04:11]} Bc6 {[%emt 0:04:28]} 23. Rcd1 {[%emt 0:06:27]} Rhg8 {[%emt 0:02:50]} 24. g5 {[%emt 0:03:38]} hxg5 {[%emt 0:00:03]} 25. fxg5 {[%emt 0:00:07]} fxg5 {[%emt 0:01:03]} 26. Rf1 {[%emt 0:00:01]} f5 {[%emt 0:01:03]} 27. Rde1 {[%emt 0:06:19]} Kd6 {[%emt 0:01:29]} 28. hxg5 {[%emt 0:00:55]} Rxg5 {[%emt 0:05:14]} 29. Bxf5 {[%emt 0:02:02]} Kc7 {[%emt 0:05:00]} 30. Bc2 {[%emt 0:02:58]} Rg4 {[%emt 0:00:18]} 31. Bb3 {[%emt 0:07:33]} Be4+ {[%emt 0:02:21]} 32. Ka1 {[%emt 0:00:13]} a5 {[%emt 0:01:20]} 33. Bd1 {[%emt 0:02:02]} Rg2 {[%emt 0:02:39]} 34. Rxe4 {[%emt 0:03:38]} Rbxb2 {[%emt 0:00:03]} 35. Qxb2 {[%emt 0:03:54]} Rxb2 {[%emt 0:00:02]} 36. Kxb2 {[%emt 0:00:02]} Qb4+ {[%emt 0:00:01]} 37. Bb3 {[%emt 0:01:00]} a4 {[%emt 0:00:04]} 38. Rd1 {[%emt 0:00:09]} axb3 {[%emt 0:02:41]} 39. axb3 {[%emt 0:00:01]} Qa5 {[%emt 0:00:26]} 40. c5 {[%emt 0:02:07]} Kb8 {[%emt 0:00:45]} 41. b4 {[%emt 0:30:49]} Qb5 {[%emt 0:30:23]} 42. Kb3 {[%emt 0:01:52]} Kc8 {[%emt 0:00:00]} 43. Red4 {[%emt 0:00:00]} d5 {[%emt 0:00:00]} 44. cxd6 {[%emt 0:00:00]} Kd7 {[%emt 0:00:00]} 45. Rc4 {[%emt 0:00:00]} Qh5 {[%emt 0:00:00]} 46. Rc7+ {[%emt 0:00:00]} Kd8 {[%emt 0:00:00]} 47. Rd2 {[%emt 0:00:00]} e5 {[%emt 0:00:00]} 48. d7 {[%emt 0:00:00]} Qf3+ {[%emt 0:00:00]} 49. Kb2 {[%emt 0:00:00]} 1-0

[Event "FIDE Womens World Cup 2021"]
[Site "Sochi"]
[Date "2021.07.15"]
[Round "2.1"]
[White "Ushenina, Anna"]
[Black "Cyfka, Karina"]
[Result "1-0"]
[ECO "E01"]
[WhiteElo "2429"]
[BlackElo "2417"]
[Annotator "NA"]
[PlyCount "141"]
[EventDate "2021.07.12"]
[EventType "k.o."]
[EventCountry "RUS"]
[SourceTitle "playchess.com"]
[Source "ChessBase"]
[SourceQuality "1"]
[TimeControl "40/5400+30:1800+30"]

1. d4 {[%emt 0:00:04]} Nf6 {[%emt 0:00:14]} 2. c4 {[%emt 0:00:25]} e6 {[%emt 0:00:08]} 3. g3 {[%emt 0:00:27]} d5 {[%emt 0:01:38]} 4. Bg2 {[%emt 0:00:13]} Bb4+ {[%emt 0:02:00]} 5. Bd2 {[%emt 0:00:08]} Bxd2+ {[%emt 0:02:42]} 6. Qxd2 {[%emt 0:07:21]} O-O {[%emt 0:00:40]} 7. Nf3 {[%emt 0:00:12]} c6 {[%emt 0:02:18]} 8. O-O {[%emt 0:01:36]} Nbd7 {[%emt 0:00:24]} 9. Ne5 {[%emt 0:08:11]} dxc4 {[%emt 0:25:59]} 10. Nxc4 {[%emt 0:01:48]} Qe7 {[%emt 0:00:48]} 11. Nc3 {[%emt 0:02:46]} Rd8 {[%emt 0:09:11]} 12. Rfd1 {[%emt 0:22:09]} Nb6 {[%emt 0:00:51]} 13. Ne5 {[%emt 0:00:20]} Nfd7 {[%emt 0:01:20]} 14. Nf3 {[%emt 0:03:37]} Nf6 {[%emt 0:07:03]} 15. Qc2 {[%emt 0:02:38]} Bd7 {[%emt 0:02:04]} 16. e4 {[%emt 0:00:59]} c5 {[%emt 0:03:42]} 17. e5 {[%emt 0:11:19]} Ne8 {[%emt 0:00:44]} 18. Ne4 {[%emt 0:16:30]} c4 {[%emt 0:05:17]} 19. Neg5 {[%emt 0:02:26]} f5 {[%emt 0:01:39]} 20. exf6 {[%emt 0:00:10]} gxf6 {[%emt 0:00:12]} 21. Ne4 {[%emt 0:01:35]} Bc6 {[%emt 0:03:23]} 22. Re1 {[%emt 0:00:10]} Ng7 {[%emt 0:01:11]} 23. Rad1 {[%emt 0:04:41]} Qf7 {[%emt 0:06:15]} 24. Qc1 {[%emt 0:00:38]} Rac8 {[%emt 0:03:01]} 25. h4 {[%emt 0:08:26]} Kh8 {[%emt 0:03:18]} 26. a3 {[%emt 0:00:59]} Rc7 {[%emt 0:01:41]} 27. g4 {[%emt 0:02:35]} Bxe4 {[%emt 0:06:51]} 28. Rxe4 {[%emt 0:00:02]} Nd5 {[%emt 0:00:05]} 29. Rde1 {[%emt 0:01:19]} c3 {[%emt 0:00:24]} 30. h5 {[%emt 0:00:07]} Rc6 {[%emt 0:03:25]} 31. h6 {[%emt 0:00:33]} Ne8 {[%emt 0:00:08]} 32. g5 {[%emt 0:00:24]} Rdc8 {[%emt 0:01:36]} 33. Bh3 {[%emt 0:00:50]} Nec7 {[%emt 0:01:35]} 34. Rg4 {[%emt 0:01:10]} Rg8 {[%emt 0:02:07]} 35. Rg3 {[%emt 0:00:36]} Nb5 {[%emt 0:02:32]} 36. a4 {[%emt 0:00:16]} Nbc7 {[%emt 0:00:44]} 37. bxc3 {[%emt 0:00:11]} Rxc3 {[%emt 0:00:15]} 38. Qd2 {[%emt 0:00:45]} Qh5 {[%emt 0:01:13]} 39. Bg4 {[%emt 0:00:36]} Qe8 {[%emt 0:00:21]} 40. Rc1 {[%emt 0:00:44]} Rxc1+ {[%emt 0:00:40]} 41. Qxc1 {[%emt 0:30:01]} b5 {[%emt 0:06:16]} 42. axb5 {[%emt 0:00:00]} Nxb5 {[%emt 0:02:45]} 43. Qe1 {[%emt 0:00:00]} Nbc7 {[%emt 0:02:52]} 44. gxf6 {[%emt 0:00:00]} Qf7 {[%emt 0:00:54]} 45. Qe5 {[%emt 0:00:00]} Qxf6 {[%emt 0:01:58]} 46. Qxf6+ {[%emt 0:00:00]} Nxf6 {[%emt 0:00:02]} 47. Ne5 {[%emt 0:00:00]} Rf8 {[%emt 0:00:41]} 48. Be2 {[%emt 0:00:00]} Ng8 {[%emt 0:01:35]} 49. Rg7 {[%emt 0:00:00]} Nd5 {[%emt 0:00:36]} 50. Bd3 {[%emt 0:01:30]} Nxh6 {[%emt 0:04:09]} 51. Rxh7+ {[%emt 0:00:10]} Kg8 {[%emt 0:00:06]} 52. Rxh6 {[%emt 0:00:22]} Rf4 {[%emt 0:00:04]} 53. Rxe6 {[%emt 0:02:00]} Rxd4 {[%emt 0:00:11]} 54. Rd6 {[%emt 0:00:44]} Kf8 {[%emt 0:00:54]} 55. Bc4 {[%emt 0:00:57]} Rd1+ {[%emt 0:00:33]} 56. Kh2 {[%emt 0:00:05]} Nc3 {[%emt 0:00:05]} 57. Rxd1 {[%emt 0:00:44]} Nxd1 {[%emt 0:00:05]} 58. Kg3 {[%emt 0:00:28]} a5 {[%emt 0:00:17]} 59. Kf3 {[%emt 0:00:40]} Nb2 {[%emt 0:01:39]} 60. Be2 {[%emt 0:00:45]} Na4 {[%emt 0:01:56]} 61. Nc4 {[%emt 0:00:16]} Nc5 {[%emt 0:00:09]} 62. Nxa5 {[%emt 0:00:04]} Ke7 {[%emt 0:00:04]} 63. Kf4 {[%emt 0:00:18]} Kf6 {[%emt 0:00:04]} 64. Bc4 {[%emt 0:00:13]} Nd7 {[%emt 0:00:06]} 65. Nc6 {[%emt 0:00:09]} Nb6 {[%emt 0:00:10]} 66. Ne5 {[%emt 0:00:33]} Nc8 {[%emt 0:00:18]} 67. Ng4+ {[%emt 0:00:10]} Ke7 {[%emt 0:00:05]} 68. Ke5 {[%emt 0:00:13]} Nb6 {[%emt 0:00:12]} 69. Bb5 {[%emt 0:00:15]} Nc8 {[%emt 0:00:06]} 70. Ne3 {[%emt 0:00:05]} Kf7 {[%emt 0:00:12]} 71. Nd5 {[%emt 0:00:09]} 1-0

[Event "FIDE Womens World Cup 2021"]
[Site "Sochi"]
[Date "2021.07.15"]
[Round "2.1"]
[White "Matnadze, Ana"]
[Black "Badelka, Olga"]
[Result "1/2-1/2"]
[ECO "A46"]
[WhiteElo "2421"]
[BlackElo "2418"]
[Annotator "NA"]
[PlyCount "111"]
[EventDate "2021.07.12"]
[EventType "k.o."]
[EventCountry "RUS"]
[SourceTitle "playchess.com"]
[Source "ChessBase"]
[SourceQuality "1"]
[TimeControl "40/5400+30:1800+30"]

1. d4 {[%emt 0:00:07]} Nf6 {[%emt 0:00:08]} 2. Nf3 {[%emt 0:00:12]} e6 {[%emt 0:00:11]} 3. c4 {[%emt 0:00:14]} d5 {[%emt 0:00:06]} 4. Qb3 {[%emt 0:00:38]} Be7 {[%emt 0:05:11]} 5. g3 {[%emt 0:01:03]} a6 {[%emt 0:01:06]} 6. a4 {[%emt 0:00:48]} Nc6 {[%emt 0:10:09]} 7. c5 {[%emt 0:11:45]} e5 {[%emt 0:11:00]} 8. dxe5 {[%emt 0:11:41]} Ne4 {[%emt 0:00:56]} 9. Bg2 {[%emt 0:03:58]} Bxc5 {[%emt 0:01:05]} 10. O-O {[%emt 0:00:55]} Be6 {[%emt 0:05:08]} 11. a5 {[%emt 0:11:20]} O-O {[%emt 0:02:55]} 12. Bf4 {[%emt 0:12:56]} g5 {[%emt 0:05:17]} 13. Bc1 {[%emt 0:06:06]} g4 {[%emt 0:16:23]} 14. Ne1 {[%emt 0:01:14]} Nxe5 {[%emt 0:02:39]} 15. Nd3 {[%emt 0:05:17]} Nxd3 {[%emt 0:00:57]} 16. exd3 {[%emt 0:00:17]} Ng5 {[%emt 0:01:19]} 17. Qc3 {[%emt 0:02:22]} Be7 {[%emt 0:09:16]} 18. Ra4 {[%emt 0:07:11]} Rc8 {[%emt 0:05:18]} 19. Qb3 {[%emt 0:08:12]} Qd7 {[%emt 0:03:30]} 20. d4 {[%emt 0:04:25]} c5 {[%emt 0:05:23]} 21. dxc5 {[%emt 0:01:46]} Rxc5 {[%emt 0:00:09]} 22. Rd4 {[%emt 0:01:08]} Bf6 {[%emt 0:06:21]} 23. Rf4 {[%emt 0:00:56]} Bg7 {[%emt 0:00:56]} 24. Rb4 {[%emt 0:02:10]} Nh3+ {[%emt 0:00:18]} 25. Bxh3 {[%emt 0:01:59]} gxh3 {[%emt 0:00:03]} 26. Rxb7 {[%emt 0:01:44]} Qc8 {[%emt 0:00:38]} 27. Bf4 {[%emt 0:01:13]} d4 {[%emt 0:00:33]} 28. Qb4 {[%emt 0:01:06]} Qc6 {[%emt 0:01:49]} 29. f3 {[%emt 0:00:05]} Rc2 {[%emt 0:01:29]} 30. Nd2 {[%emt 0:00:33]} Rc1 {[%emt 0:01:17]} 31. Rb8 {[%emt 0:00:43]} Rxf1+ {[%emt 0:00:17]} 32. Kxf1 {[%emt 0:00:21]} Bc8 {[%emt 0:03:50]} 33. Qc4 {[%emt 0:01:05]} Qd7 {[%emt 0:00:09]} 34. Qd3 {[%emt 0:00:52]} Bb7 {[%emt 0:00:32]} 35. Rxf8+ {[%emt 0:00:23]} Kxf8 {[%emt 0:00:22]} 36. Qxh7 {[%emt 0:00:44]} Qb5+ {[%emt 0:01:11]} 37. Kf2 {[%emt 0:00:02]} Qc5 {[%emt 0:00:34]} 38. Qxh3 {[%emt 0:00:30]} d3+ {[%emt 0:00:31]} 39. Be3 {[%emt 0:00:09]} Qxa5 {[%emt 0:00:27]} 40. Qd7 {[%emt 0:00:41]} Qd5 {[%emt 0:00:26]} 41. Qxd5 {[%emt 0:05:52]} Bxd5 {[%emt 0:00:04]} 42. Bc5+ {[%emt 0:00:30]} Kg8 {[%emt 0:02:00]} 43. b4 {[%emt 0:11:44]} Bc3 {[%emt 0:04:39]} 44. Nb1 {[%emt 0:08:27]} Bb2 {[%emt 0:00:33]} 45. Ke3 {[%emt 0:01:17]} Bc1+ {[%emt 0:01:17]} 46. Kxd3 {[%emt 0:00:23]} Bxf3 {[%emt 0:00:04]} 47. Be3 {[%emt 0:00:41]} Bh5 {[%emt 0:06:15]} 48. Bxc1 {[%emt 0:03:52]} Bg6+ {[%emt 0:00:04]} 49. Kd4 {[%emt 0:00:05]} Bxb1 {[%emt 0:00:04]} 50. Ke5 {[%emt 0:00:10]} Bd3 {[%emt 0:01:33]} 51. g4 {[%emt 0:00:22]} Bc2 {[%emt 0:00:25]} 52. Kf6 {[%emt 0:00:09]} Bd3 {[%emt 0:00:10]} 53. h4 {[%emt 0:00:07]} Bc2 {[%emt 0:00:05]} 54. g5 {[%emt 0:00:37]} Bd3 {[%emt 0:00:13]} 55. h5 {[%emt 0:00:05]} Bc2 {[%emt 0:00:05]} 56. Bd2 {[%emt 0:00:26]} 1/2-1/2

[Event "FIDE Womens World Cup 2021"]
[Site "Sochi"]
[Date "2021.07.15"]
[Round "2.1"]
[White "Osmak, Iulija"]
[Black "Munguntuul, Batkhuyag"]
[Result "0-1"]
[ECO "C77"]
[WhiteElo "2418"]
[BlackElo "2428"]
[Annotator "NA"]
[PlyCount "84"]
[EventDate "2021.07.12"]
[EventType "k.o."]
[EventCountry "RUS"]
[SourceTitle "playchess.com"]
[Source "ChessBase"]
[SourceQuality "1"]
[TimeControl "40/5400+30:1800+30"]

1. e4 {[%emt 0:00:04]} e5 {[%emt 0:00:03]} 2. Nf3 {[%emt 0:00:16]} Nc6 {[%emt 0:00:03]} 3. Bb5 {[%emt 0:00:27]} a6 {[%emt 0:00:04]} 4. Ba4 {[%emt 0:00:08]} Nf6 {[%emt 0:00:10]} 5. Nc3 {[%emt 0:00:23]} b5 {[%emt 0:03:34]} 6. Bb3 {[%emt 0:00:07]} Be7 {[%emt 0:01:20]} 7. O-O {[%emt 0:01:44]} O-O {[%emt 0:02:25]} 8. d3 {[%emt 0:03:14]} d6 {[%emt 0:00:54]} 9. a3 {[%emt 0:00:24]} h6 {[%emt 0:20:40]} 10. h3 {[%emt 0:05:32]} Re8 {[%emt 0:02:47]} 11. Be3 {[%emt 0:10:06]} Bb7 {[%emt 0:19:19]} 12. Nd5 {[%emt 0:15:51]} Nxd5 {[%emt 0:08:13]} 13. Bxd5 {[%emt 0:01:17]} Na5 {[%emt 0:05:28]} 14. Ba2 {[%emt 0:12:26]} c5 {[%emt 0:01:31]} 15. b4 {[%emt 0:00:14]} Nc6 {[%emt 0:00:16]} 16. c3 {[%emt 0:02:53]} Qd7 {[%emt 0:09:06]} 17. Nh2 {[%emt 0:14:40]} Nd8 {[%emt 0:01:27]} 18. bxc5 {[%emt 0:08:48]} dxc5 {[%emt 0:00:08]} 19. Ng4 {[%emt 0:00:09]} Bg5 {[%emt 0:06:44]} 20. Bxc5 {[%emt 0:10:46]} Qc6 {[%emt 0:08:23]} 21. Be3 {[%emt 0:01:23]} Qxc3 {[%emt 0:00:06]} 22. Qe2 {[%emt 0:03:02]} Rc8 {[%emt 0:03:23]} 23. Rfc1 {[%emt 0:04:59]} Qa5 {[%emt 0:00:10]} 24. Bxg5 {[%emt 0:00:28]} hxg5 {[%emt 0:00:03]} 25. Qe3 {[%emt 0:00:22]} Ne6 {[%emt 0:02:17]} 26. Nxe5 {[%emt 0:01:33]} Qxa3 {[%emt 0:00:40]} 27. Rxc8 {[%emt 0:01:04]} Bxc8 {[%emt 0:00:19]} 28. Nxf7 {[%emt 0:01:25]} Qb2 {[%emt 0:00:13]} 29. Rc1 {[%emt 0:00:26]} Kxf7 {[%emt 0:02:36]} 30. Rc7+ {[%emt 0:00:45]} Kg6 {[%emt 0:00:54]} 31. Bxe6 {[%emt 0:00:25]} Bxe6 {[%emt 0:00:11]} 32. Rc5 {[%emt 0:00:37]} Qa1+ {[%emt 0:00:18]} 33. Rc1 {[%emt 0:00:22]} Qf6 {[%emt 0:00:12]} 34. Rc6 {[%emt 0:00:15]} Kh7 {[%emt 0:01:17]} 35. Rxa6 {[%emt 0:00:19]} b4 {[%emt 0:00:44]} 36. d4 {[%emt 0:00:56]} Rb8 {[%emt 0:01:13]} 37. d5 b3 {[%emt 0:00:00]} 38. Qe1 {[%emt 0:01:08]} b2 {[%emt 0:00:46]} 39. Qb1 {[%emt 0:00:19]} Qc3 40. Rc6 Qa5 {[%emt 0:01:30]} 41. e5+ {[%emt 0:08:07]} Kg8 {[%emt 0:02:51]} 42. Rxe6 Qa1 0-1

[Event "FIDE Womens World Cup 2021"]
[Site "Sochi"]
[Date "2021.07.15"]
[Round "2.1"]
[White "Guichard, Pauline"]
[Black "Atalik, Ekaterina"]
[Result "1-0"]
[ECO "D37"]
[WhiteElo "2413"]
[BlackElo "2433"]
[Annotator "NA"]
[PlyCount "91"]
[EventDate "2021.07.12"]
[EventType "k.o."]
[EventCountry "RUS"]
[SourceTitle "playchess.com"]
[Source "ChessBase"]
[SourceQuality "1"]
[TimeControl "40/5400+30:1800+30"]

1. d4 {[%emt 0:00:03]} Nf6 {[%emt 0:00:21]} 2. c4 {[%emt 0:00:09]} e6 {[%emt 0:00:16]} 3. Nf3 {[%emt 0:00:11]} d5 {[%emt 0:00:21]} 4. Nc3 {[%emt 0:00:18]} Nbd7 {[%emt 0:00:27]} 5. Bf4 {[%emt 0:00:40]} dxc4 {[%emt 0:02:49]} 6. e3 {[%emt 0:00:56]} Nd5 {[%emt 0:01:35]} 7. Bxc4 {[%emt 0:00:42]} Nxf4 {[%emt 0:00:07]} 8. exf4 {[%emt 0:00:04]} Nf6 {[%emt 0:01:43]} 9. O-O {[%emt 0:02:58]} Be7 {[%emt 0:01:11]} 10. f5 {[%emt 0:15:16]} exf5 {[%emt 0:13:35]} 11. Qb3 {[%emt 0:02:43]} O-O {[%emt 0:04:47]} 12. Ng5 {[%emt 0:00:39]} b5 {[%emt 0:05:46]} 13. Nxb5 {[%emt 0:07:54]} Rb8 {[%emt 0:02:31]} 14. Nxf7 {[%emt 0:21:03]} Rxf7 {[%emt 0:02:51]} 15. Bxf7+ {[%emt 0:00:51]} Kf8 {[%emt 0:00:46]} 16. a4 {[%emt 0:10:16]} a6 {[%emt 0:03:23]} 17. Rfe1 {[%emt 0:06:33]} axb5 {[%emt 0:02:17]} 18. a5 {[%emt 0:00:27]} Ra8 {[%emt 0:15:38]} 19. Qf3 {[%emt 0:03:52]} Ra6 {[%emt 0:02:52]} 20. Bb3 {[%emt 0:03:30]} Bd7 {[%emt 0:05:21]} 21. Qc3 {[%emt 0:08:04]} Bd6 {[%emt 0:04:49]} 22. Ba2 {[%emt 0:01:09]} Ne4 {[%emt 0:11:01]} 23. Qb3 {[%emt 0:02:27]} Qf6 {[%emt 0:07:37]} 24. Qg8+ {[%emt 0:05:20]} Ke7 {[%emt 0:00:05]} 25. Qxh7 {[%emt 0:04:34]} Kd8 {[%emt 0:03:49]} 26. Bd5 {[%emt 0:00:59]} c6 {[%emt 0:03:30]} 27. Bxe4 {[%emt 0:00:27]} fxe4 {[%emt 0:00:04]} 28. Rxe4 {[%emt 0:01:15]} Kc7 {[%emt 0:00:20]} 29. Qg8 {[%emt 0:00:43]} Kb7 {[%emt 0:01:26]} 30. h3 {[%emt 0:00:50]} Ra8 {[%emt 0:00:22]} 31. Qb3 {[%emt 0:00:28]} Rf8 {[%emt 0:00:23]} 32. a6+ {[%emt 0:00:16]} Ka7 {[%emt 0:00:09]} 33. Qe3 {[%emt 0:00:30]} Qd8 {[%emt 0:02:27]} 34. d5+ {[%emt 0:00:47]} c5 {[%emt 0:00:45]} 35. b4 {[%emt 0:00:25]} Qb6 {[%emt 0:00:39]} 36. Re7 {[%emt 0:00:33]} Rd8 {[%emt 0:00:25]} 37. Rxg7 {[%emt 0:00:14]} cxb4 {[%emt 0:01:00]} 38. Qxb6+ {[%emt 0:00:04]} Kxb6 {[%emt 0:00:04]} 39. a7 {[%emt 0:00:06]} Bf5 {[%emt 0:01:13]} 40. Rf7 {[%emt 0:01:34]} Be4 {[%emt 0:00:53]} 41. Rd7 {[%emt 0:03:58]} Ra8 {[%emt 0:06:39]} 42. Rxd6+ {[%emt 0:00:32]} Kc5 {[%emt 0:00:19]} 43. Rc6+ {[%emt 0:12:53]} Kxd5 {[%emt 0:02:52]} 44. Rb6 {[%emt 0:00:06]} Kc5 {[%emt 0:03:14]} 45. Rb8 {[%emt 0:00:07]} b3 {[%emt 0:01:44]} 46. Ra5 {[%emt 0:00:48]} 1-0

[Event "FIDE Womens World Cup 2021"]
[Site "Sochi"]
[Date "2021.07.15"]
[Round "2.1"]
[White "Sukandar, Irine Kharisma"]
[Black "Gunina, Valentina"]
[Result "0-1"]
[ECO "B13"]
[WhiteElo "2413"]
[BlackElo "2437"]
[Annotator "NA"]
[PlyCount "108"]
[EventDate "2021.07.12"]
[EventType "k.o."]
[EventCountry "RUS"]
[SourceTitle "playchess.com"]
[Source "ChessBase"]
[SourceQuality "1"]
[TimeControl "40/5400+30:1800+30"]

1. e4 {[%emt 0:00:15]} c6 {[%emt 0:00:10]} 2. d4 {[%emt 0:00:14]} d5 {[%emt 0:00:17]} 3. exd5 {[%emt 0:00:15]} cxd5 {[%emt 0:00:18]} 4. Bd3 {[%emt 0:00:22]} Nf6 {[%emt 0:01:15]} 5. c3 {[%emt 0:00:28]} Bg4 {[%emt 0:01:11]} 6. Ne2 {[%emt 0:01:17]} Nc6 {[%emt 0:04:07]} 7. O-O {[%emt 0:07:22]} e6 {[%emt 0:03:21]} 8. Qe1 {[%emt 0:01:03]} Bd6 {[%emt 0:03:45]} 9. f3 {[%emt 0:13:22]} Bh5 {[%emt 0:01:23]} 10. Qh4 {[%emt 0:00:22]} Qb6 {[%emt 0:06:56]} 11. Nf4 {[%emt 0:16:54]} Bxf4 {[%emt 0:26:16]} 12. Qxf4 {[%emt 0:00:14]} Bg6 {[%emt 0:00:07]} 13. Bxg6 {[%emt 0:10:15]} hxg6 {[%emt 0:00:31]} 14. a4 {[%emt 0:01:45]} e5 {[%emt 0:02:44]} 15. Qe3 {[%emt 0:00:29]} O-O-O {[%emt 0:00:24]} 16. dxe5 {[%emt 0:03:58]} d4 {[%emt 0:00:47]} 17. a5 {[%emt 0:14:09]} Nxa5 {[%emt 0:05:20]} 18. cxd4 {[%emt 0:00:54]} Nd5 {[%emt 0:00:06]} 19. Qf2 {[%emt 0:00:46]} Nb3 {[%emt 0:00:38]} 20. Ra4 {[%emt 0:02:05]} Qc6 {[%emt 0:04:11]} 21. Nc3 {[%emt 0:14:52]} Nxc3 {[%emt 0:08:45]} 22. Ra3 {[%emt 0:00:05]} Ne2+ {[%emt 0:09:55]} 23. Qxe2 {[%emt 0:00:08]} Nxd4 {[%emt 0:00:04]} 24. Qf2 {[%emt 0:01:01]} Qb5 {[%emt 0:01:55]} 25. Re1 {[%emt 0:02:00]} a6 {[%emt 0:02:18]} 26. f4 {[%emt 0:01:31]} Kb8 {[%emt 0:01:54]} 27. Be3 {[%emt 0:00:38]} Qb4 {[%emt 0:01:01]} 28. Rc3 {[%emt 0:02:06]} Rd7 {[%emt 0:03:28]} 29. Rd1 {[%emt 0:00:55]} Rhd8 {[%emt 0:01:20]} 30. Kh1 {[%emt 0:02:29]} Nc6 {[%emt 0:02:36]} 31. Rxd7 {[%emt 0:00:18]} Rxd7 {[%emt 0:00:01]} 32. Rc1 {[%emt 0:00:10]} Qb3 {[%emt 0:01:30]} 33. h3 {[%emt 0:01:42]} Rd3 {[%emt 0:00:13]} 34. Bc5 {[%emt 0:00:20]} Qd5 {[%emt 0:00:22]} 35. Bd6+ {[%emt 0:01:28]} Ka8 {[%emt 0:00:21]} 36. Qh4 {[%emt 0:00:54]} Rd2 {[%emt 0:03:13]} 37. Qg5 {[%emt 0:00:30]} Ka7 {[%emt 0:03:35]} 38. Bc5+ {[%emt 0:00:09]} b6 {[%emt 0:01:02]} 39. Ba3 {[%emt 0:00:17]} a5 {[%emt 0:00:30]} 40. Kh2 {[%emt 0:01:52]} Ka6 {[%emt 0:00:14]} 41. Qg4 {[%emt 0:07:58]} Nd4 {[%emt 0:06:40]} 42. Rc3 {[%emt 0:01:40]} Nf5 {[%emt 0:01:05]} 43. Qf3 {[%emt 0:02:51]} Qxf3 {[%emt 0:00:45]} 44. Rxf3 {[%emt 0:00:01]} b5 {[%emt 0:00:41]} 45. b4 {[%emt 0:04:34]} a4 {[%emt 0:00:15]} 46. Kg1 {[%emt 0:00:51]} Nd4 {[%emt 0:00:26]} 47. Rf2 {[%emt 0:00:31]} Rd3 {[%emt 0:04:54]} 48. Bb2 {[%emt 0:00:39]} Ne6 {[%emt 0:00:45]} 49. f5 {[%emt 0:00:33]} gxf5 {[%emt 0:00:06]} 50. Rxf5 {[%emt 0:00:05]} Rb3 {[%emt 0:00:19]} 51. Bc1 {[%emt 0:01:12]} Rxb4 {[%emt 0:00:11]} 52. Rxf7 {[%emt 0:00:14]} Rb1 {[%emt 0:00:18]} 53. Rf1 {[%emt 0:00:08]} b4 {[%emt 0:00:04]} 54. Rd1 {[%emt 0:00:20]} a3 {[%emt 0:00:16]} 0-1